Cogmind - Beta 16 @@@ ROGUE MODE // 2025.10.27 @ 14:53:16 Player: Salivanth Result: Destroyed by D-53 Grenadier with Mini Grenade Launcher Performance ------------- Evolutions (0) 0 Regions Visited (2) 400 Robots Destroyed (11) 55 Value Destroyed (204) 204 Prototype IDs (2) 40 Alien Tech Used (0) 0 Bonus (-44) -44 TOTAL SCORE: 655 Bonus ------- Friendly Fire -44 Cogmind --------- Core Integrity 0/250 Matter 242/300 Energy 100/100 System Corruption 0% Temperature Cool (0) Movement Treading (160) Location -10/Mines Parts ------- > --- POWER (1) -------- (None) > --- PROPULSION (2) --- Light Treads > --- UTILITY (2) ------ Small Storage Unit Small Storage Unit > --- WEAPON (2) ------- (None) > --- INVENTORY (8) ---- Scrap Suit Seismic Detector Assault Rifle Datajack Mining Laser Peak State ------------ > --- POWER ------------ Light Ion Engine > --- PROPULSION ------- Aluminum Leg Aluminum Leg > --- UTILITY ---------- Small Storage Unit Small Storage Unit > --- WEAPON ----------- Assault Rifle Assault Rifle > --- INVENTORY -------- Light Ion Engine Light Treads Light Treads Scrap Suit Grenade Launcher Datajack Mining Laser [Rating: 8] Favorites ----------- Power Light Ion Engine Engine Light Ion Engine Propulsion Aluminum Leg Treads Light Treads Leg Aluminum Leg Utility Small Storage Unit Storage Small Storage Unit Weapon Assault Rifle Energy Gun EM Pulse Gun Ballistic Gun Assault Rifle Launcher Grenade Launcher Build | -11 -10 -10 ------- Run | Yrd Mat Min Slots Evolved . | . . . Power . | . . . Propulsion . | . . . Utility . | . . . Weapon . | . . . Parts Attached 12 | 6 3 3 Power 3 | 1 1 1 Engine 3 | 1 1 1 Core . | . . . Reactor . | . . . Propulsion 3 | 2 . 1 Treads 1 | . . 1 Leg 2 | 2 . . Wheel . | . . . Hover . | . . . Flight . | . . . Utility 2 | 1 1 . Device . | . . . Storage 2 | 1 1 . Processor . | . . . Hackware . | . . . Protection . | . . . Artifact . | . . . Weapon 4 | 2 1 1 Energy Gun 1 | 1 . . Energy Cannon . | . . . Ballistic Gun 2 | 1 1 . Ballistic Cannon . | . . . Launcher 1 | . . 1 Special Weapon . | . . . Impact Weapon . | . . . Slashing Weapon . | . . . Piercing Weapon . | . . . Special Melee Weapon . | . . . Unidentified Prototypes . | . . . Parts Lost 7 | . 1 6 Power 2 | . . 2 Propulsion 2 | . . 2 Utility . | . . . Weapon 3 | . 1 2 Highest Loss Streak 6 | . 1 6 To Critical Strikes . | . . . Average Backups 5 | 2 5 6 Power . | . . 1 Propulsion 1 | . 2 1 Utility . | . . 1 Weapon 1 | . 1 2 Tool/Special . | . . . Unused Backups 5 | . . 5 Power . | . . . Propulsion 1 | . . 1 Utility 2 | . . 2 Weapon 1 | . . 1 Tool/Special 1 | . . 1 Average Slot Usage (%) 96 | . 99 94 Engine 13 | . 14 13 Leg 26 | . 28 25 Storage 27 | . 27 28 Energy Gun 2 | . 6 . Ballistic Gun 22 | . 21 22 Launcher 1 | . . 2 Peak Build Rating 8 | 6 7 8 Average Rating 6 | 4 6 7 On Entrance 4 | . 6 7 Avg Prop Armor Cover (%) . | . . . Naked Turns . | . . . Heaviest Build 18 | 12 17 18 Greatest Support 20 | 20 20 20 Greatest Overweight (x) 3 | . . 3 Average Overweight (x) . | . . . Largest Inventory Capacity 8 | 8 8 8 Average Capacity 7 | 7 8 8 Most Carried 8 | 5 6 8 Average Carried 6 | 2 5 7 Final Capacity 8 | 8 8 8 Final Carried 6 | 4 6 6 Class Distribution -------------------- 100% | Mutant Dominant Class ---------------- Mutant | -10/Materials Mutant | -10/Mines Resources | -11 -10 -10 ----------- Run | Yrd Mat Min Matter Collected 414 | 182 150 82 Remotely . | . . . Salvage Created 275 | . 172 103 Parts 20 | . 17 3 Haulers Intercepted . | . . . Recyclers Shooed 1 | . 1 . Parts Field Recycled . | . . . Retrieved Matter . | . . . Parts Self-Destructed . | . . . Prevented . | . . . Parts Restored . | . . . Kills | -11 -10 -10 ------- Run | Yrd Mat Min Combat Hostiles Destroyed 20 | . 6 14 Guns 7 | . 6 1 AOE 13 | . . 13 Classes Destroyed 6 | . 4 2 Worker 1 | . 1 . Operator 1 | . 1 . Watcher 1 | . 1 . Swarmer 6 | . 6 . Grunt 2 | . . 2 Assembled 12 | . . 12 Best Kill Streak 12 | . 4 12 Combat Bots Only 12 | . 3 12 Max Kills in Single Turn 5 | . 2 5 Gunslinging 1 | . 1 . Exploded 5 | . . 5 Melee . | . . . Uniques/NPCs Destroyed . | . . . Combat | -11 -10 -10 -------- Run | Yrd Mat Min Hostile Shots Fired 88 | . 38 50 Missed 21 | . 10 11 Hits 67 | . 28 39 Melee 2 | . . 2 Projectile 65 | . 28 37 AOE 11 | . . 11 Damage Taken 1079 | . 226 853 Core 278 | . 28 250 Absorbed by Shields . | . . . Core Remaining (%) 100 | 100 . . Volleys Fired 29 | . 18 11 Largest 2 | . 2 2 Hottest 60 | . 60 50 Shots Fired 57 | . 36 21 Gun 50 | . 36 14 Cannon . | . . . Launcher 7 | . . 7 Special . | . . . Kinetic 39 | . 25 14 Thermal . | . . . Explosive 7 | . . 7 Electromagnetic 11 | . 11 . Robot Hit Streak 11 | . 9 11 Robot Miss Streak 2 | . 2 2 Penetration Max . | . . . Secondary Targets 3 | . 3 . Max Gunslinging Chain 1 | . 1 . Shots Hit Robots 42 | . 25 17 Core Hits 38 | . 11 27 Critical Kills . | . . . Critical Parts Destroyed . | . . . Critical Strikes . | . . . Melee Attacks . | . . . Impact . | . . . Slashing . | . . . Piercing . | . . . Sneak Attacks . | . . . Combat Hostiles . | . . . Follow-up Attacks . | . . . Damage Inflicted 1380 | . 358 1022 Guns 501 | . 358 143 Cannons . | . . . Explosions 879 | . . 879 Melee . | . . . Ramming . | . . . Kinetic 402 | . 259 143 Thermal . | . . . Explosive 879 | . . 879 Electromagnetic 99 | . 99 . Impact . | . . . Slashing . | . . . Piercing . | . . . Highest Corruption . | . . . Average Corruption . | . . . Corruption Purged . | . . . Corruption Blocked . | . . . Overload Shots . | . . . Overflow Damage 9 | . . 9 Projectiles . | . . . Explosions 9 | . . 9 Melee . | . . . Knockbacks . | . . . Impact . | . . . Kinetic . | . . . Secondary . | . . . Self-Inflicted Damage 50 | . . 50 Shots 3 | . . 3 Rammed . | . . . Targets Rammed 1 | . . 1 Kicked 1 | . . 1 Crushed . | . . . Highest Temperature 36 | . . 36 Average Temperature 13 | . . 13 Received Heat Transfer 138 | . . 138 Siege Activations . | . . . Martial Activations . | . . . Shielding Activations . | . . . Robots Disrupted . | . . . Combat Hostiles . | . . . Robots Corrupted . | . . . Combat Hostiles . | . . . Parts Fried . | . . . Impact Corruptions . | . . . Robots Melted . | . . . Combat Hostiles . | . . . Parts Melted . | . . . Heat Transferred . | . . . Parts Sabotaged . | . . . Parts Stolen . | . . . Parts Stripped . | . . . Power Chain Reactions . | . . . Alert | -11 -10 -10 ------- Run | Yrd Mat Min Maximum Alert Level . | . . . Low Security (%) 100 | 100 100 100 Level 1 . | . . . Level 2 . | . . . Level 3 . | . . . Level 4 . | . . . Level 5 . | . . . High Security . | . . . Max Security . | . . . Peak Influence 145 | . 145 90 Initial 39 | . . 39 Average 41 | . 80 23 Influence Increases 318 | . 202 116 Destroy 0b10 Robot/C 160 | . 120 40 Destroy 0b10 Robot/NC 15 | . 15 . Destroy Leader 32 | . 22 10 Allied During Kill 6 | . . 6 Successful Hack 30 | . 30 . Disable Machine 45 | . 15 30 Destroy Structure 30 | . . 30 Influence Decreases 318 | . 100 218 Entered New Map 63 | . . 63 Time Decay 159 | . 90 69 Lost Part 56 | . 10 46 Lost Ally 40 | . . 40 Squads Dispatched . | . . . Investigation . | . . . Extermination . | . . . Reinforcement . | . . . Assault . | . . . Garrison . | . . . Intercept . | . . . Searches Triggered . | . . . Construction Impeded . | . . . Haulers Reinforced . | . . . Active Scanning Responses . | . . . Cargo Convoy Interrupts . | . . . Stealth | -11 -10 -10 --------- Run | Yrd Mat Min Distress Signals 1 | . 1 . Communications Jammed . | . . . Distress Signals . | . . . Times Spotted 37 | . 13 24 Peak Tracking Total 14 | . 5 14 Tactical Retreats . | . . . Traps | -11 -10 -10 ------- Run | Yrd Mat Min Traps Triggered . | . . . Indirectly . | . . . Trap Hack Attempts . | . . . Triggered . | . . . Disarmed . | . . . Reprogrammed . | . . . Reused . | . . . Traps Extracted . | . . . Installed . | . . . Triggered . | . . . Machines | -11 -10 -10 ---------- Run | Yrd Mat Min Machines Disabled 3 | . 1 2 Max in Single Turn 2 | . 1 2 Machines Repaired . | . . . Machines Dismantled . | . . . Machines Sabotaged . | . . . Overloaded Fab Kills . | . . . Hacking | -11 -10 -10 --------- Run | Yrd Mat Min Machines Accessed 4 | . 4 . Terminals 4 | . 4 . Fabricators . | . . . Repair Stations . | . . . Recycling Units . | . . . Scanalyzers . | . . . Garrison Access . | . . . Total Hacks 12 | . 12 . Successful 8 | . 8 . Failed 4 | . 4 . Catastrophic . | . . . Database Lockouts . | . . . Manual . | . . . Terminals 12 | . 12 . Fabricators . | . . . Repair Stations . | . . . Recycling Units . | . . . Scanalyzers . | . . . Garrison Access . | . . . Terminal Hacks 8 | . 8 . Robot Analysis 1 | . 1 . Prototype ID Bank 1 | . 1 . Branch Access Points 1 | . 1 . Alert Level 1 | . 1 . Locate Traps 1 | . 1 . Dispatch Records 1 | . 1 . Maintenance Status 1 | . 1 . Hauler Manifests 1 | . 1 . Fabricator Hacks . | . . . Repair Station Hacks . | . . . Recycling Unit Hacks . | . . . Scanalyzer . | . . . Garrison Access Hacks . | . . . Unauthorized Hacks . | . . . Terminals . | . . . Fabricators . | . . . Repair Stations . | . . . Recycling Units . | . . . Scanalyzers . | . . . Garrison Access . | . . . Data Cores Recovered 1 | . 1 . Used 1 | . 1 . Hacking Detections 2 | . 2 . Full Trace Events 1 | . 1 . Feedback Events . | . . . Feedback Blocked . | . . . Robot Schematics Acquired . | . . . Robots Built . | . . . Authchips . | . . . Time . | . . . Total Robot Build Rating . | . . . Part Schematics Acquired . | . . . Parts Built . | . . . Authchips . | . . . Time . | . . . Total Part Build Rating . | . . . Part Studies Acquired . | . . . Parts Repaired . | . . . Time . | . . . Parts Recycled . | . . . Recycled Matter . | . . . Retrieved Matter . | . . . Retrieved Components . | . . . Parts Scanalyzed . | . . . Part Schematics Acquired . | . . . Parts Damaged . | . . . Bothacking | -11 -10 -10 ------------ Run | Yrd Mat Min Used RIF Installer . | . . . Robots Hacked . | . . . Non-combat . | . . . Combat . | . . . Robot Hacks Applied . | . . . Relay Couplers Released . | . . . Fabnet Peak Effective % . | . . . Robots Rewired . | . . . Allies Hacked . | . . . Hacks Repelled . | . . . Allies | -11 -10 -10 -------- Run | Yrd Mat Min Total Allies 2 | . . 2 Largest Group 2 | . . 2 Highest-Rated Group 45 | . . 45 Highest-Rated Ally 31 | . . 31 Total Orders . | . . . Ally Attacks 10 | . . 10 Total Damage 127 | . . 127 Kills 3 | . . 3 Allies Corrupted . | . . . Allies Melted . | . . . Intel | -11 -10 -10 ------- Run | Yrd Mat Min Active Infowar (turns) . | . . . Robot Analysis Total 1 | . 1 . Derelict Logs Recovered 1 | . . 1 Drone Launches . | . . . Drone Recoveries . | . . . Exploration | -11 -10 -10 ------------- Run | Yrd Mat Min Turns Passed 590 | 62 215 313 Spaces Moved 402 | 51 127 224 Core 25 | 21 . 4 Treads 4 | . . 4 Legs 373 | 30 127 216 Wheels . | . . . Hover . | . . . Flight . | . . . Fastest Speed 50 | 50 120 120 Average Speed 117 | 91 120 122 Slowest Speed 200 | 120 120 200 Overloaded Moves . | . . . Propulsion Burnouts . | . . . Robots Hopped . | . . . Potential Cave-ins . | . . . Cave-ins Triggered . | . . . Exploration Rate (%) 27 | 3 27 53 Regions Visited 2 Branch Regions 1 Pre-discovered Areas . | . . . Known Exits Taken 1 | . 1 . Unknown Exits Taken 1 | 1 . . Scrap Searched 1 | . . 1 Spaces Dug . | . . . Terrain Destroyed 45 | . . 45 Melee . | . . . Projectile . | . . . AOE 45 | . . 45 Terrain Rammed . | . . . Walls Destroyed . | . . . Machines Disabled . | . . . Actions | -11 -10 -10 --------- Run | Yrd Mat Min Total 461 | 66 153 242 Wait . | . . . Move 400 | 50 126 224 Hop . | . . . Pick Up 17 | 10 5 2 Fast Attach . | . . . Attach 10 | 6 2 2 Detach . | . . . Swap 2 | . 1 1 Drop 2 | . 1 1 Fire 29 | . 18 11 Melee . | . . . Ram . | . . . Kick 1 | . . 1 Crush . | . . . Escape Stasis . | . . . Rewire . | . . . Trap . | . . . Miscellaneous . | . . . Route ------- -11/Scrapyard -10/Materials -10/Mines History --------- Turn | Location | Event 13 | -11/Scrapyard | Discovered new exit (range 16) 63 | -11/Scrapyard | Entered Materials 120 | -10/Materials | Discovered new exit (range 12) 245 | -10/Materials | Identified exit to Mines 278 | -10/Materials | Entered Mines 302 | -10/Mines | Build established: Mutant 318 | -10/Mines | Found a Scrap Suit stashed away for nefarious purposes 320 | -10/Mines | Found Scrap Suit 342 | -10/Mines | Learned Materials interactive machine intel 538 | -10/Mines | Assembled infested the area 569 | -10/Mines | Core integrity fell below 50% 584 | -10/Mines | Core integrity fell below 20% 585 | -10/Mines | Destroyed 12 combat bots 591 | -10/Mines | Destroyed by D-53 Grenadier with Mini Grenade Launcher Last Messages --------------- 00558_ as-71586 destroyed. [Achievement: Quick And Dirty] 00561_ The unstable cave ceiling collapses. 00561_ as-05856 destroyed. 00564_ Grenade Launcher destroyed. 00564_ as-69058 destroyed. 00565_ Assault Rifle destroyed. 00566_ as-53263 destroyed. 00567_ Lgt. Ion Engine destroyed. 00568_ as-20755 destroyed. 00568_ as-44554 destroyed. 00568_ as-36064 destroyed. 00568_ as-93451 destroyed. 00572_ as-82038 destroyed. 00572_ 37-D27(g) destroyed. 00575_ Aluminum Leg destroyed. 00576_ The unstable cave ceiling collapses. 00577_ as-55976 destroyed. 00580_ The unstable cave ceiling collapses. 00591_ Lgt. Ion Engine destroyed. Map ----- +----------------------------------------------------+ | ?????????????????### #????????## ##??????## | | ???????????????????### ##??????## #????????# | | ?????????????????????## #####??# #????????? | | ??????????????????????# #### #?????????? | | ??????????????????????# #?????????? | | ????????????####??????# #????? | | ???????????## #?????# #### # ######????? | | ???????????# ####?## ##??# ## ##?????????? | | ???????????# # #### ##???# #####??????????? | | ??????????## #????# #??????????????? | | ????? " ## #????# #??????????????? | | ??? #????# #??????????????? | | ???????# %% ##???# #??????????????? | | ???????## # #???? ???????????????? | | ????????##?# #???? ???????????????? | | ???????????# #???? ???????????????? | | ???????????# # # dd #????#???????????????? | | ??????????## # #????????????????????? | | ???????? ##???????????????????? | | ???????? # # #???????????????????? | | ???????? " % ###??????????????????? | | ????????# #??????????????????? | | ????????### ## #??????????????????? | | ??????????### #?# #??????????????????? | | ????????????## #???# #??????????????????? | | ???????????? ????# @ #??????????????????? | | ???????????##??????## # ##??????????????????? | | ????????????????????## #???????????????????? | | ?????????????????????# # ####???????????????????? | | ?????????????????????######??????????????????????? | | ?????????????????????????????????????????????????? | | ?????????????????????????????????????????????????? | | ?????????????????????????????????????????????????? | | ?????????????????????????????????????????????????? | | | | | | | | | | | | | | | | | | | | | | | | | | | | | | | | | +----------------------------------------------------+ Best States ------------- Heat Dissipation 25 Energy Generation 10 Energy Capacity 125 Matter Stores 300 Matter Capacity 300 Sight Range 16 Terrain Scan Density 10 Evasion (%) 55 Recoil Reduction 1 Item Schematics ----------------- None Robot Schematics ------------------ None Fabricated ------------ Nothing Repaired ---------- Nothing Studied --------- None Alien Tech Used ----------------- None Achievements -------------- Dynamic Key Quick And Dirty Challenges ------------ None Game ------ Seed GravitonIonicPick Manual? 0 Play Time 00:09:36 Cumulative 2.4 hours Start 2025.10.27 @ 14:44:08 End 2025.10.27 @ 14:53:16 Sessions 1 Manual Loads 0 Difficulty Rogue Special Mode None Game No. 7 Rogue 7 Adventurer 0 Explorer 0 Win Type - Total 0 Types 0/0/0/0/0/0/0/0/0/0 Lore% 1 Gallery% 6 Achievement% 6 Wizard Run 0 Options --------- Layout 1 ASCII 0 Keyboard 0 Movement Mouse Keybinds 0 Fullscreen 1 Font 24/Smallcaps Map View 50x35 Zoom Use 0% Tactical HUD 1 Map Filters NONE Filters NONE Steam 1 RUN: f1c75bde-c6ea-4d38-b311-0c27f88dd945